fUST/lending_fUST_20240221
["ID","MTS","AMOUNT","RATE_DAILY","PERIOD"]
[314640052,1708492242651,-500.0,0.0002019,2]
[314640053,1708492242660,-500.0,0.0002019,2]
[314640054,1708492242669,-500.0,0.0002019,2]
[314640055,1708492242678,-500.0,0.0002019,2]
[314640056,1708492242688,-500.0,0.0002019,2]
[314640057,1708492242698,-500.0,0.0002019,2]
[314640058,1708492242707,-1508.62,0.0002019,2]
[314640060,1708492242717,-500.0,0.0002019,2]
[314640062,1708492242726,-638.0,0.0002019,2]
[314640063,1708492242735,-634.53,0.0002019,2]
[314640064,1708492242744,-500.0,0.0002019,2]
[314640065,1708492242754,-500.0,0.0002019,2]
[314640066,1708492242763,-500.0,0.0002019,2]
[314640067,1708492242772,-616.72,0.0002019,2]
[314640068,1708492242781,-500.0,0.0002019,2]
[314640069,1708492242791,-500.0,0.0002019,2]
[314640071,1708492242800,-500.0,0.0002019,2]
[314640072,1708492242810,-500.0,0.0002019,2]
[314640073,1708492242820,-500.0,0.0002019,2]
[314640074,1708492242829,-500.0,0.0002019,2]
[314640075,1708492242838,-571.29,0.0002019,2]
[314640076,1708492242848,-500.0,0.0002019,2]
[314640077,1708492242857,-500.0,0.0002019,2]
[314640078,1708492242866,-763.99,0.0002019,2]
[314640079,1708492242875,-500.0,0.0002019,2]
[314640080,1708492242885,-826.4,0.0002019,2]
[314640081,1708492242895,-500.0,0.0002019,2]
[314640082,1708492242904,-500.0,0.0002019,2]
[314640083,1708492242914,-2513.48,0.0002019,2]
[314640084,1708492242923,-500.0,0.0002019,2]
[314640085,1708492242932,-500.0,0.0002019,2]
[314640086,1708492242941,-500.0,0.0002019,2]
[314640087,1708492242951,-500.0,0.0002019,2]
[314640088,1708492242960,-500.0,0.0002019,2]
[314640089,1708492242970,-819.54,0.0002019,2]
[314640090,1708492242979,-537.22303569,0.0002019,2]
[314640091,1708492242989,-500.0,0.0002019,2]
[314640092,1708492242999,-500.0,0.0002019,2]
[314640093,1708492243011,-500.0,0.0002019,2]
[314640095,1708492243021,-500.0,0.0002019,2]
[314640096,1708492243031,-500.0,0.0002019,2]
[314640097,1708492243041,-657.04,0.0002019,2]
[314640098,1708492243051,-592.46,0.0002019,2]
[314640099,1708492243062,-467.76783797,0.0002019,2]
[314640100,1708492243075,-500.0,0.0002019,2]
[314640101,1708492243085,-500.0,0.0002019,2]
[314640102,1708492243094,-500.0,0.0002019,2]
[314640103,1708492243103,-500.0,0.0002019,2]
[314640104,1708492243114,-500.0,0.0002019,2]
[314640105,1708492243124,-1224.55,0.0002019,2]
[314640106,1708492243133,-327.57413912,0.0002019,2]
[314640107,1708492243143,-500.0,0.0002019,2]
[314640108,1708492243153,-692.99,0.0002019,2]
[314640109,1708492243163,-500.0,0.0002019,2]
[314640110,1708492243173,-500.0,0.0002019,2]
[314640111,1708492243182,-500.0,0.0002019,2]
[314640112,1708492243190,-596.73,0.0002019,2]
[314640113,1708492243201,-650.07,0.0002019,2]
[314640114,1708492243211,-500.0,0.0002019,2]
[314640115,1708492243221,-636.9,0.0002019,2]
[314640116,1708492243230,-500.0,0.0002019,2]
[314640117,1708492243239,-500.0,0.00020191,2]
[314640118,1708492243250,-500.0,0.00020191,2]
[314640119,1708492243260,-500.0,0.00020191,2]
[314640120,1708492243269,-500.0,0.00020191,2]
[314640121,1708492243279,-500.0,0.00020191,2]
[314640122,1708492243288,-500.0,0.00020191,2]
[314640123,1708492243297,-500.0,0.00020191,2]
[314640124,1708492243307,-551.11,0.00020191,2]
[314640125,1708492243317,-300.0,0.00020245,2]
[314640126,1708492243326,-10451.50614662,0.00020329,2]
[314640127,1708492243335,-264.49081926,0.00020362,2]
[314640128,1708492243345,-1273.27,0.00020362,2]
[314640129,1708492243354,-2620.91,0.00020362,2]
[314640130,1708492243364,-300.0,0.00020412,2]
[314640131,1708492243374,-28957.36,0.00020459,2]
[314640132,1708492243383,-500.0,0.00020459,2]
[314640133,1708492243393,-500.0,0.00020459,2]
[314640134,1708492243402,-500.0,0.0002046,2]
[314640135,1708492243411,-1164.74,0.0002046,2]
[314640136,1708492243421,-513.2,0.0002046,2]
[314640137,1708492243430,-500.0,0.0002046,2]
[314640138,1708492243440,-500.0,0.0002046,2]
[314640139,1708492243449,-500.0,0.0002046,2]
[314640140,1708492243458,-504.15,0.0002046,2]
[314640141,1708492243467,-500.0,0.0002046,2]
[314640142,1708492243477,-500.0,0.0002046,2]
[314640143,1708492243486,-500.0,0.0002046,2]
[314640144,1708492243496,-1097.58,0.0002046,2]
[314640145,1708492243510,-500.0,0.0002046,2]
[314640146,1708492243522,-500.0,0.0002046,2]
[314640147,1708492243532,-2186.91,0.0002046,2]
[314640148,1708492243542,-500.0,0.0002046,2]
[314640149,1708492243552,-578.11,0.0002046,2]
[314640150,1708492243561,-500.0,0.0002046,2]
[314640151,1708492243571,-407.50005023,0.0002046,2]
[314640152,1708492243580,-500.0,0.0002046,2]
[314640153,1708492243590,-500.0,0.0002046,2]
[314640154,1708492243600,-500.0,0.0002046,2]
[314640155,1708492243610,-500.0,0.0002046,2]
[314640156,1708492243619,-744.59,0.0002046,2]
[314640157,1708492243627,-500.0,0.0002046,2]
[314640158,1708492243636,-500.0,0.0002046,2]
[314640159,1708492243646,-500.0,0.0002046,2]
[314640160,1708492243655,-769.27,0.0002046,2]
[314640161,1708492243664,-301.40434877,0.0002046,2]
[314640162,1708492243673,-500.0,0.0002046,2]
[314640163,1708492243682,-151.0,0.0002046,2]
[314640164,1708492243691,-1239.72,0.0002046,2]
[314640165,1708492243700,-500.0,0.0002046,2]
[314640166,1708492243709,-2669.94,0.0002046,2]
[314640167,1708492243718,-500.0,0.0002046,2]
[314640168,1708492243727,-500.0,0.0002046,2]
[314640169,1708492243736,-500.0,0.0002046,2]
[314640170,1708492243745,-500.0,0.0002046,2]
[314640171,1708492243757,-1180.55,0.0002046,2]
[314640172,1708492243766,-533.73,0.0002046,2]
[314640173,1708492243776,-3249.54,0.0002046,2]
[314640174,1708492243785,-1225.38,0.0002046,2]
[314640175,1708492243795,-500.0,0.0002046,2]
[314640176,1708492243804,-4501.77,0.0002046,2]
[314640177,1708492243813,-500.0,0.0002046,2]
[314640178,1708492243823,-500.0,0.0002046,2]
[314640179,1708492243832,-3091.99,0.0002046,2]
[314640180,1708492243841,-500.0,0.0002046,2]
[314640181,1708492243851,-500.0,0.0002046,2]
[314640182,1708492243860,-500.0,0.0002046,2]
[314640183,1708492243870,-500.0,0.0002046,2]
[314640184,1708492243879,-1446.0,0.0002046,2]
[314640185,1708492244015,-36414.37,0.0002046,2]
[314640186,1708492244025,-500.0,0.0002046,2]
[314640187,1708492244035,-2677.51,0.0002046,2]
[314640188,1708492244045,-536.8,0.0002046,2]
[314640189,1708492244055,-500.0,0.0002046,2]
[314640190,1708492244064,-753.62,0.0002046,2]
[314640191,1708492244077,-4219.01,0.0002046,2]
[314640192,1708492244086,-1699.89,0.0002046,2]
[314640193,1708492244096,-567.71,0.0002046,2]
[314640194,1708492244106,-500.0,0.0002046,2]
[314640195,1708492244117,-500.0,0.0002046,2]
[314640196,1708492244127,-1270.81,0.0002046,2]
[314640197,1708492244136,-500.0,0.0002046,2]
[314640198,1708492244146,-500.0,0.0002046,2]
[314640199,1708492244157,-803.22,0.0002046,2]
[314640200,1708492244167,-500.0,0.0002046,2]
[314640201,1708492244176,-500.0,0.0002046,2]
[314640202,1708492244185,-500.0,0.0002046,2]
[314640203,1708492244194,-2064.49,0.0002046,2]
[314640204,1708492244204,-500.0,0.0002046,2]
[314640205,1708492244213,-660.32,0.0002046,2]
[314640206,1708492244222,-500.0,0.0002046,2]
[314640207,1708492244232,-500.0,0.0002046,2]
[314640208,1708492244243,-1001.44015609,0.0002046,2]
[314640209,1708492244254,-500.0,0.0002046,2]
[314640210,1708492244263,-500.0,0.0002046,2]
[314640211,1708492244272,-500.0,0.0002046,2]
[314640212,1708492244281,-500.0,0.00020461,2]
[314640213,1708492244291,-2957.67,0.00020461,2]
[314640214,1708492244300,-500.0,0.00020461,2]
[314640215,1708492244309,-14194.49,0.00020461,2]
[314640216,1708492244318,-500.0,0.00020461,2]
[314640217,1708492244328,-20619.78,0.00020461,2]
[314640218,1708492244337,-5824.7,0.00020461,2]
[314640219,1708492244346,-500.0,0.00020461,2]
[314640220,1708492244355,-500.0,0.00020461,2]
[314640221,1708492244364,-4312.53,0.00020461,2]
[314640222,1708492244374,-500.0,0.00020461,2]
[314640223,1708492244383,-1044.8,0.00020461,2]
[314640224,1708492244392,-500.0,0.00020461,2]
[314640225,1708492244401,-557.38,0.00020461,2]
[314640226,1708492244410,-5302.09,0.00020461,2]
[314640227,1708492244419,-500.0,0.00020461,2]
[314640228,1708492244428,-7789.32,0.00020461,2]
[314640229,1708492244438,-500.0,0.00020461,2]
[314640230,1708492244446,-500.0,0.00020462,2]
[314640231,1708492244456,-575.54006568,0.00020462,2]
[314640232,1708492244465,-543.01,0.00020462,2]
[314640233,1708492244474,-574.45,0.00020462,2]
[314640234,1708492244483,-1426.73,0.00020462,2]
[314640235,1708492244492,-583.65,0.00020462,2]
[314640236,1708492244503,-500.0,0.00020462,2]
[314640237,1708492244512,-5826.71,0.00020462,2]
[314640238,1708492244521,-1000.0,0.00020462,2]
[314640239,1708492244531,-500.0,0.00020462,2]
[314640240,1708492244540,-500.0,0.00020462,2]
[314640241,1708492244549,-20985.8,0.00020462,2]
[314640242,1708492244559,-630.4741948,0.00020462,2]
[314640243,1708492244569,-4052.29,0.00020462,2]
[314640244,1708492244578,-500.0,0.00020462,2]
[314640245,1708492244588,-500.0,0.00020462,2]
[314640246,1708492244597,-500.0,0.00020462,2]
[314640247,1708492244606,-554.18861888,0.00020462,2]
[314640248,1708492244616,-500.0,0.00020462,2]
[314640249,1708492244625,-500.0,0.00020462,2]
[314640250,1708492244634,-4175.23,0.00020462,2]
[314640251,1708492244643,-500.0,0.00020462,2]
[314640252,1708492244652,-582.67,0.00020462,2]
[314640253,1708492244661,-500.0,0.00020462,2]
[314640254,1708492244671,-5750.42,0.00020462,2]
[314640255,1708492244680,-2799.61,0.00020462,2]
[314640256,1708492244689,-6456.96,0.00020462,2]
[314640257,1708492244699,-432.97786707,0.00020463,2]
[314640258,1708492244709,-1581.17,0.00020463,2]
[314640259,1708492244718,-573.44,0.00020463,2]
[314640260,1708492244727,-500.0,0.00020463,2]
[314640261,1708492244736,-500.0,0.00020463,2]
[314640262,1708492244745,-500.0,0.00020463,2]
[314640263,1708492244755,-500.0,0.00020463,2]
[314640264,1708492244765,-500.0,0.00020463,2]
[314640265,1708492244775,-500.0,0.00020463,2]
[314640266,1708492244784,-741.72,0.00020463,2]
[314640267,1708492244793,-1124.55,0.00020463,2]
[314640268,1708492244802,-500.0,0.00020463,2]
[314640269,1708492244811,-500.0,0.00020463,2]
[314640270,1708492244821,-500.0,0.00020463,2]
[314640271,1708492244830,-500.0,0.00020464,2]
[314640272,1708492244840,-500.0,0.00020464,2]
[314640273,1708492244849,-500.0,0.00020464,2]
[314640274,1708492244858,-500.0,0.00020464,2]
[314640275,1708492244868,-500.0,0.00020464,2]
[314640276,1708492244878,-507.66,0.00020464,2]
[314640277,1708492244887,-500.0,0.00020464,2]
[314640278,1708492244896,-579.4,0.00020464,2]
[314640279,1708492244906,-1141.36,0.00020464,2]
[314640280,1708492244915,-500.0,0.00020464,2]
[314640281,1708492244926,-500.0,0.00020464,2]
[314640282,1708492244936,-500.0,0.00020464,2]
[314640283,1708492244945,-500.0,0.00020464,2]
[314640284,1708492244955,-500.0,0.00020464,2]
[314640285,1708492244964,-500.0,0.00020464,2]
[314640286,1708492244974,-1508.62,0.00020464,2]
[314640287,1708492244983,-500.0,0.00020464,2]
[314640288,1708492244993,-638.0,0.00020464,2]
[314640289,1708492245003,-634.53,0.00020464,2]
[314640290,1708492245012,-159.02038948,0.00020464,2]
[314640291,1708492245021,-500.0,0.00020464,2]
[314640292,1708492245031,-500.0,0.00020464,2]
[314640293,1708492245040,-616.72,0.00020464,2]
[314640294,1708492245049,-500.0,0.00020464,2]
[314640295,1708492245058,-500.0,0.00020464,2]
[314640296,1708492245072,-500.0,0.00020464,2]
[314640297,1708492245084,-500.0,0.00020464,2]
[314640298,1708492245093,-500.0,0.00020464,2]
[314640299,1708492245103,-500.0,0.00020464,2]
[314640300,1708492245112,-571.29,0.00020464,2]
[314640301,1708492245123,-500.0,0.00020464,2]
[314640302,1708492245132,-163.97744344,0.00020464,2]
[314640303,1708492245142,-763.99,0.00020464,2]
[314640304,1708492245151,-500.0,0.00020464,2]
[314640305,1708492245160,-826.4,0.00020464,2]
[314640306,1708492245169,-500.0,0.00020464,2]
[314640307,1708492245178,-500.0,0.00020464,2]
[314640308,1708492245187,-2513.48,0.00020464,2]
[314640309,1708492245196,-500.0,0.00020464,2]
[314640310,1708492245205,-500.0,0.00020464,2]
[314640311,1708492245214,-225.73623162,0.00020464,2]
[314640312,1708492245224,-500.0,0.00020464,2]
[314640313,1708492245233,-500.0,0.00020464,2]
[314640314,1708492245242,-819.54,0.00020464,2]
[314640315,1708492245254,-500.0,0.00020464,2]
[314640316,1708492245263,-500.0,0.00020464,2]
[314640317,1708492245273,-500.0,0.00020464,2]
[314640318,1708492245282,-500.0,0.00020464,2]
[314640319,1708492245291,-500.0,0.00020464,2]
[314640320,1708492245300,-592.46,0.00020464,2]
[314640321,1708492245309,-657.04,0.00020464,2]
[314640322,1708492245318,-500.0,0.00020464,2]
[314640323,1708492245327,-500.0,0.00020464,2]
[314640324,1708492245335,-500.0,0.00020464,2]
[314640325,1708492245345,-500.0,0.00020464,2]
[314640326,1708492245354,-500.0,0.00020464,2]
[314640327,1708492245363,-1224.55,0.00020464,2]
[314640328,1708492245372,-386.65847787,0.00020464,2]
[314640329,1708492245381,-692.99,0.00020464,2]
[314640330,1708492245390,-500.0,0.00020464,2]
[314640331,1708492245399,-500.0,0.00020464,2]
[314640332,1708492245408,-500.0,0.00020464,2]
[314640333,1708492245418,-596.73,0.00020464,2]
[314640334,1708492245427,-650.07,0.00020464,2]
[314640335,1708492245436,-586.52020403,0.00020464,2]
[314640336,1708492245445,-636.9,0.00020464,2]
[314640337,1708492245454,-500.0,0.00020464,2]
[314640338,1708492245464,-500.0,0.00020465,2]
[314640339,1708492245474,-605.11699951,0.00020465,2]
[314640340,1708492245483,-151.20673677,0.00020465,2]
[314640341,1708492245492,-500.0,0.00020465,2]
[314640342,1708492245502,-500.0,0.00020465,2]
[314640343,1708492245511,-500.0,0.00020465,2]
[314640344,1708492245521,-500.0,0.00020465,2]
[314640345,1708492245531,-551.11,0.00020465,2]
[314640346,1708492245540,-5000.0,0.00020533,2]
[314640347,1708492245549,-7553.10447632,0.00020533,2]
[314640348,1708492245559,-5000.0,0.00020533,2]
[314640349,1708492245568,-20665.81205073,0.00020533,2]
[314640360,1708492246055,-731.56,0.00019912,2]
[314640361,1708492246065,-500.0,0.00019912,2]
[314640362,1708492246075,-731.56,0.00020186,2]
[314640363,1708492246088,-731.56,0.0002046,2]
[314640364,1708492246097,-1394.22611268,0.00020533,2]
[314640365,1708492246116,-2001.22942812,0.00020533,2]
[314640372,1708492246223,-500.86039175,0.00019814,2]
[314640374,1708492246233,-500.0,0.00019912,2]
[314640376,1708492246243,-500.0,0.00020186,2]
[314640378,1708492246254,-207.0185075,0.000203,2]
[314640380,1708492246263,-278.39488804,0.0002046,2]
[314640393,1708492319488,173.004196,0.00018957,2]
[314640394,1708492536247,420.96498197,0.000189,2]
[314640395,1708492672469,537.8027266,0.0001883,2]
[314640398,1708493137406,368.54574358,0.000189,2]
[314640438,1708493432445,-524.79095275,0.00019504,2]
[314640439,1708493432455,-213.08781164,0.00019506,2]
[314640440,1708493432466,-163.38875591,0.00019507,2]
[314640441,1708493432476,-155.06222807,0.00019714,2]
[314640442,1708493432485,-1396.7,0.00019803,3]
[314640443,1708493432494,-2180.71,0.00019803,3]
[314640444,1708493432504,-1817.26,0.00019803,3]
[314640445,1708493432513,-1514.38,0.00019803,3]
[314640446,1708493432523,-1327.00382832,0.00019811,2]
[314640447,1708493432532,-300.0,0.00019812,2]
[314640448,1708493432542,-500.0,0.00019813,2]
[314640449,1708493432551,-2402.5,0.00019813,2]
[314640450,1708493432561,-1233.63,0.00019813,2]
[314640451,1708493432570,-500.0,0.00019813,2]
[314640452,1708493432579,-4528.68,0.00019813,2]
[314640453,1708493432589,-28043.58,0.00019813,2]
[314640454,1708493432599,-36562.33,0.00019813,2]
[314640455,1708493432609,-1707.29,0.00019813,2]
[314640456,1708493432619,-753.95,0.00019813,2]
[314640457,1708493432629,-264.49081926,0.00019813,2]
[314640458,1708493432638,-500.0,0.00019813,2]
[314640459,1708493432650,-1271.69,0.00019813,2]
[314640460,1708493432659,-500.0,0.00019813,2]
[314640461,1708493432669,-1032.56,0.00019813,2]
[314640462,1708493432678,-1167.16,0.00019813,2]
[314640463,1708493432687,-500.0,0.00019813,2]
[314640464,1708493432697,-500.0,0.00019813,2]
[314640465,1708493432708,-500.0,0.00019814,2]
[314640466,1708493432719,-1593.05,0.00019814,2]
[314640467,1708493432729,-577.74,0.00019814,2]
[314640468,1708493432738,-311.29389314,0.00019814,2]
[314640469,1708493432748,-500.0,0.00019814,2]
[314640470,1708493432757,-500.0,0.00019814,2]
[314640471,1708493432766,-242.34779744,0.00019814,2]
[314640472,1708493432776,-500.0,0.00019814,2]
[314640473,1708493432786,-500.0,0.00019814,2]
[314640474,1708493432795,-500.0,0.00019814,2]
[314640475,1708493432804,-522.44,0.00019814,2]
[314640476,1708493432814,-500.0,0.00019814,2]
[314640477,1708493432824,-500.0,0.00019814,2]
[314640478,1708493432833,-500.0,0.00019814,2]
[314640479,1708493432842,-1372.69,0.00019814,2]
[314640480,1708493432851,-500.0,0.00019814,2]
[314640481,1708493432861,-500.0,0.00019814,2]
[314640482,1708493432871,-500.0,0.00019814,2]
[314640483,1708493432880,-535.01,0.00019814,2]
[314640484,1708493432890,-500.0,0.00019814,2]
[314640485,1708493432901,-500.0,0.00019814,2]
[314640486,1708493432910,-500.0,0.00019814,2]
[314640487,1708493432919,-748.07,0.00019814,2]
[314640488,1708493432929,-5341.15,0.00019814,2]
[314640489,1708493432938,-500.0,0.00019814,2]
[314640490,1708493432947,-1000.0,0.00019814,2]
[314640491,1708493432957,-500.0,0.00019814,2]
[314640492,1708493432967,-235.96892945,0.00019814,2]
[314640493,1708493432976,-500.0,0.00019814,2]
[314640494,1708493432986,-1128.72,0.00019814,2]
[314640495,1708493432996,-500.0,0.00019814,2]
[314640496,1708493433006,-500.0,0.00019814,2]
[314640497,1708493433016,-500.0,0.00019814,2]
[314640498,1708493433025,-500.0,0.00019814,2]
[314640499,1708493433035,-500.0,0.00019814,2]
[314640500,1708493433044,-500.0,0.00019814,2]
[314640501,1708493433054,-5510.82,0.00019814,2]
[314640502,1708493433063,-2682.96,0.00019814,2]
[314640503,1708493433072,-6187.92,0.00019814,2]
[314640504,1708493433081,-500.0,0.00019814,2]
[314640505,1708493433089,-500.0,0.00019814,2]
[314640506,1708493433098,-515.38336551,0.00019909,2]
[314640507,1708493433107,-500.0,0.00019909,2]
[314640508,1708493433117,-500.0,0.00019909,2]
[314640509,1708493433127,-585.41,0.00019909,2]
[314640510,1708493433136,-500.0,0.00019909,2]
[314640511,1708493433145,-500.0,0.00019909,2]
[314640512,1708493433153,-500.0,0.00019909,2]
[314640513,1708493433163,-500.0,0.00019909,2]
[314640514,1708493433171,-500.0,0.00019909,2]
[314640515,1708493433180,-500.0,0.00019909,2]
[314640516,1708493433189,-513.16674299,0.00019909,2]
[314640517,1708493433198,-169.13718039,0.00019909,2]
[314640518,1708493433206,-500.0,0.00019909,2]
[314640519,1708493433215,-500.0,0.00019909,2]
[314640520,1708493433225,-500.0,0.00019909,2]
[314640521,1708493433234,-802.78,0.00019909,2]
[314640522,1708493433242,-500.0,0.00019909,2]
[314640523,1708493433251,-500.0,0.00019909,2]
[314640524,1708493433259,-500.0,0.00019909,2]
[314640525,1708493433268,-776.32,0.00019909,2]
[314640526,1708493433277,-500.0,0.00019909,2]
[314640527,1708493433285,-500.0,0.00019909,2]
[314640528,1708493433295,-500.0,0.00019909,2]
[314640529,1708493433304,-500.0,0.00019909,2]
[314640530,1708493433312,-1193.49,0.00019909,2]
[314640531,1708493433321,-500.0,0.00019909,2]
[314640532,1708493433331,-2685.09,0.00019909,2]
[314640533,1708493433339,-500.0,0.00019909,2]
[314640534,1708493433348,-500.0,0.00019909,2]
[314640535,1708493433356,-500.10655657,0.00019909,2]
[314640536,1708493433366,-500.0,0.00019909,2]
[314640537,1708493433375,-532.33,0.00019909,2]
[314640538,1708493433383,-500.0,0.00019909,2]
[314640539,1708493433392,-500.0,0.00019909,2]
[314640540,1708493433401,-2963.16,0.00019909,2]
[314640541,1708493433410,-514.44,0.00019909,2]
[314640542,1708493433418,-4043.22,0.00019909,2]
[314640543,1708493433429,-3267.98,0.00019909,2]
[314640544,1708493433438,-448.37102176,0.00019909,2]
[314640545,1708493433446,-500.0,0.00019909,2]
[314640546,1708493433455,-500.0,0.00019909,2]
[314640547,1708493433464,-410.05742415,0.00019909,2]
[314640562,1708493439154,-500.0,0.00019813,2]
[314640564,1708493439164,-89.94257585,0.00019909,2]
[314640566,1708493439173,-500.0,0.00019909,2]
[314640567,1708493439182,-500.0,0.00019909,2]
[314640569,1708493439191,-583.45186676,0.00019909,2]
[314640571,1708493439201,-544.06,0.00019909,2]
[314640573,1708493439210,-500.0,0.00019909,2]
[314640575,1708493439220,-500.0,0.00019909,2]
[314640577,1708493439230,-500.0,0.00019909,2]
[314640579,1708493439239,-500.0,0.00019909,2]
[314640581,1708493439249,-500.0,0.00019909,2]
[314640583,1708493439258,-500.0,0.00019909,2]
[314640585,1708493439267,-500.0,0.00019909,2]
[314640587,1708493439276,-500.0,0.00019909,2]
[314640589,1708493439286,-640.12,0.00019909,2]
[314640591,1708493439295,-522.29381296,0.0001991,2]
[314640593,1708493439304,-365.73194452,0.0001991,2]
[314640595,1708493439313,-1074.61,0.0001991,2]
[314640597,1708493439323,-500.0,0.0001991,2]
[314640599,1708493439332,-500.0,0.0001991,2]
[314640601,1708493439341,-500.0,0.0001991,2]
[314640603,1708493439350,-500.0,0.0001991,2]
[314640605,1708493439359,-500.0,0.0001991,2]
[314640607,1708493439369,-500.0,0.0001991,2]
[314640609,1708493439379,-500.0,0.0001991,2]
[314640611,1708493439388,-505.55014583,0.0001991,2]
[314640613,1708493439398,-500.0,0.0001991,2]
[314640615,1708493439408,-581.69424009,0.0001991,2]
[314640617,1708493439418,-500.0,0.0001991,2]
[314640619,1708493439430,-500.0,0.0001991,2]
[314640621,1708493439439,-500.0,0.0001991,2]
[314640623,1708493439448,-1063.59,0.0001991,2]
[314640625,1708493439457,-500.0,0.0001991,2]
[314640627,1708493439466,-500.0,0.0001991,2]
[314640629,1708493439475,-500.0,0.0001991,2]
[314640630,1708493439484,-500.0,0.0001991,2]
[314640631,1708493439493,-500.0,0.0001991,2]
[314640632,1708493439502,-500.0,0.0001991,2]
[314640633,1708493439512,-500.0,0.0001991,2]
[314640634,1708493439521,-500.0,0.0001991,2]
[314640635,1708493439530,-500.0,0.0001991,2]
[314640636,1708493439540,-611.21562422,0.0001991,2]
[314640637,1708493439549,-2203.55,0.0001991,2]
[314640638,1708493439558,-500.0,0.0001991,2]
[314640639,1708493439567,-500.0,0.0001991,2]
[314640640,1708493439576,-500.0,0.0001991,2]
[314640641,1708493439585,-500.0,0.0001991,2]
[314640642,1708493439595,-301.40434877,0.0001991,2]
[314640643,1708493439604,-500.0,0.0001991,2]
[314640644,1708493439613,-500.0,0.0001991,2]
[314640645,1708493439622,-682.54,0.0001991,2]
[314640646,1708493439631,-500.0,0.0001991,2]
[314640647,1708493439641,-500.0,0.0001991,2]
[314640648,1708493439650,-500.0,0.0001991,2]
[314640649,1708493439659,-500.0,0.0001991,2]
[314640650,1708493439668,-151.0,0.0001991,2]
[314640651,1708493439678,-500.0,0.0001991,2]
[314640652,1708493439687,-500.0,0.0001991,2]
[314640653,1708493439697,-500.0,0.0001991,2]
[314640654,1708493439707,-500.0,0.0001991,2]
[314640655,1708493439717,-500.0,0.0001991,2]
[314640656,1708493439726,-500.0,0.0001991,2]
[314640657,1708493439735,-266.20144439,0.0001991,2]
[314640658,1708493439744,-2454.39,0.0001991,2]
[314640659,1708493439754,-1135.73,0.0001991,2]
[314640660,1708493439763,-500.0,0.0001991,2]
[314640661,1708493439773,-500.0,0.0001991,2]
[314640662,1708493439782,-521.0039513,0.0001991,2]
[314640663,1708493439791,-500.0,0.0001991,2]
[314640664,1708493439802,-1391.11,0.0001991,2]
[314640665,1708493439812,-605.3,0.0001991,2]
[314640666,1708493439821,-500.0,0.0001991,2]
[314640667,1708493439830,-500.0,0.0001991,2]
[314640668,1708493439840,-500.0,0.0001991,2]
[314640669,1708493439850,-1001.44015609,0.0001991,2]
[314640670,1708493439858,-500.0,0.0001991,2]
[314640671,1708493439868,-521.23616701,0.0001991,2]
[314640672,1708493439878,-500.0,0.0001991,2]
[314640673,1708493439887,-500.0,0.0001991,2]
[314640674,1708493439896,-500.0,0.0001991,2]
[314640675,1708493439905,-581.59,0.0001991,2]